[Event "Titled Tuesday Blitz April 26 Early 2022"]
[White "Bethke, Richard"]
[Black "Arabidze, Meri"]
[WhiteFideId "12959243"]
[BlackFideId "13604040"]
[WhiteElo "2531"]
[BlackElo "2335"]
[Result "1-0"]
[Round "05"]
[TimeControl "180+1"]
[Date "2022.04.26"]
[WhiteClock "0:00:35"]
[BlackClock "0:00:22"]

1. e4 {[%clk 0:02:53]}  c5 {[%clk 0:02:59]} 2. Nf3 {[%clk 0:02:51]}  e6 {[%clk 0:02:59]} 3. d4 {[%clk 0:02:52]}  cxd4 {[%clk 0:03:00]} 4. Nxd4 {[%clk 0:02:52]}  Nc6 {[%clk 0:03:00]} 5. Nc3 {[%clk 0:02:50]}  a6 {[%clk 0:03:00]} 6. Be2 {[%clk 0:02:46]}  Nf6 {[%clk 0:02:58]} 7. O-O {[%clk 0:02:45]}  d6 {[%clk 0:02:58]} 8. Nxc6 {[%clk 0:02:35]}  bxc6 {[%clk 0:02:58]} 9. f4 {[%clk 0:02:35]}  Qc7 {[%clk 0:02:53]} 10. Be3 {[%clk 0:02:34]}  Be7 {[%clk 0:02:52]} 11. Qe1 {[%clk 0:02:30]}  O-O {[%clk 0:02:48]} 12. Rd1 {[%clk 0:02:28]}  d5 {[%clk 0:02:43]} 13. e5 {[%clk 0:02:23]}  Nd7 {[%clk 0:02:42]} 14. Qg3 {[%clk 0:02:21]}  Bc5 {[%clk 0:02:33]} 15. Bxc5 {[%clk 0:02:18]}  Nxc5 {[%clk 0:02:33]} 16. Kh1 {[%clk 0:02:15]}  a5 {[%clk 0:02:28]} 17. a4 {[%clk 0:02:12]}  Rb8 {[%clk 0:02:27]} 18. b3 {[%clk 0:02:12]}  Rb4 {[%clk 0:02:26]} 19. Bd3 {[%clk 0:01:57]}  Nxd3 {[%clk 0:02:22]} 20. Qxd3 {[%clk 0:01:58]}  Qb6 {[%clk 0:02:16]} 21. Qg3 {[%clk 0:01:47]}  Ba6 {[%clk 0:02:14]} 22. Rf3 {[%clk 0:01:46]}  Rd4 {[%clk 0:02:05]} 23. Qf2 {[%clk 0:01:38]}  Rxd1+ {[%clk 0:01:57]} 24. Nxd1 {[%clk 0:01:39]}  Qxf2 {[%clk 0:01:53]} 25. Nxf2 {[%clk 0:01:33]}  c5 {[%clk 0:01:51]} 26. Nd3 {[%clk 0:01:32]}  Rc8 {[%clk 0:01:50]} 27. Nb2 {[%clk 0:01:21]}  g6 {[%clk 0:01:46]} 28. h4 {[%clk 0:01:19]}  h5 {[%clk 0:01:46]} 29. g3 {[%clk 0:01:17]}  Kf8 {[%clk 0:01:40]} 30. Kg1 {[%clk 0:01:16]}  Ke7 {[%clk 0:01:40]} 31. Kf2 {[%clk 0:01:16]}  Rb8 {[%clk 0:01:37]} 32. Rc3 {[%clk 0:01:13]}  c4 {[%clk 0:01:37]} 33. Ke3 {[%clk 0:01:09]}  Kd7 {[%clk 0:01:33]} 34. Kd4 {[%clk 0:01:09]}  Rb4 {[%clk 0:01:14]} 35. Kc5 {[%clk 0:01:00]}  d4 {[%clk 0:01:14]} 36. Rf3 {[%clk 0:00:44]}  c3 {[%clk 0:00:37]} 37. Nd3 {[%clk 0:00:38]}  Rxb3 {[%clk 0:00:32]} 38. cxb3 {[%clk 0:00:34]}  Bxd3 {[%clk 0:00:31]} 39. Rxd3 {[%clk 0:00:35]}  c2 {[%clk 0:00:23]} 40. Rxd4+ {[%clk 0:00:34]}  Ke7 {[%clk 0:00:22]} 41. Rc4 {[%clk 0:00:35]} 1-0


[Site "https://www.chess.com"]

[Event "Titled Tuesday Blitz April 26 Early 2022"]
[White "Blokhin, Sofia"]
[Black "Khamdamova, Afruza"]
[WhiteFideId "4508190"]
[BlackFideId "14210444"]
[WhiteElo "1764"]
[BlackElo "1660"]
[Result "0-1"]
[Round "05"]
[TimeControl "180+1"]
[Date "2022.04.26"]
[WhiteClock "0:00:02"]
[BlackClock "0:00:31"]

1. d4 {[%clk 0:02:54]}  Nf6 {[%clk 0:02:59]} 2. c4 {[%clk 0:02:54]}  e6 {[%clk 0:02:55]} 3. Nc3 {[%clk 0:02:54]}  d5 {[%clk 0:02:55]} 4. cxd5 {[%clk 0:02:53]}  exd5 {[%clk 0:02:55]} 5. e3 {[%clk 0:02:53]}  c6 {[%clk 0:02:54]} 6. Nf3 {[%clk 0:02:53]}  Be7 {[%clk 0:02:54]} 7. Bd3 {[%clk 0:02:54]}  O-O {[%clk 0:02:54]} 8. O-O {[%clk 0:02:54]}  Bg4 {[%clk 0:02:48]} 9. Qc2 {[%clk 0:02:45]}  Bxf3 {[%clk 0:02:46]} 10. gxf3 {[%clk 0:02:45]}  h6 {[%clk 0:02:42]} 11. Ne2 {[%clk 0:02:42]}  Bd6 {[%clk 0:02:41]} 12. Ng3 {[%clk 0:02:38]}  Nbd7 {[%clk 0:02:34]} 13. Kh1 {[%clk 0:02:35]}  Bxg3 {[%clk 0:02:26]} 14. fxg3 {[%clk 0:02:29]}  Re8 {[%clk 0:02:24]} 15. Bd2 {[%clk 0:02:25]}  Nf8 {[%clk 0:02:24]} 16. Kg2 {[%clk 0:02:20]}  Qc7 {[%clk 0:02:05]} 17. g4 {[%clk 0:02:13]}  Rad8 {[%clk 0:02:03]} 18. h4 {[%clk 0:02:09]}  Ne6 {[%clk 0:01:47]} 19. Be1 {[%clk 0:02:00]}  Qb6 {[%clk 0:01:37]} 20. b4 {[%clk 0:01:53]}  Nc7 {[%clk 0:01:33]} 21. Qf2 {[%clk 0:01:46]}  Ne6 {[%clk 0:01:24]} 22. Bd2 {[%clk 0:01:36]}  g6 {[%clk 0:01:21]} 23. Rg1 {[%clk 0:01:32]}  Ng7 {[%clk 0:01:13]} 24. Kh1 {[%clk 0:01:24]}  Re7 {[%clk 0:01:03]} 25. a4 {[%clk 0:01:20]}  Rde8 {[%clk 0:01:02]} 26. a5 {[%clk 0:01:17]}  Qc7 {[%clk 0:01:02]} 27. g5 {[%clk 0:01:10]}  hxg5 {[%clk 0:01:01]} 28. hxg5 {[%clk 0:01:10]}  Nfh5 {[%clk 0:00:59]} 29. f4 {[%clk 0:01:08]}  Kh7 {[%clk 0:00:56]} 30. Kg2 {[%clk 0:01:04]}  Rh8 {[%clk 0:00:56]} 31. Rh1 {[%clk 0:01:03]}  Kg8 {[%clk 0:00:55]} 32. Rh4 {[%clk 0:00:54]}  Qd7 {[%clk 0:00:53]} 33. Rah1 {[%clk 0:00:48]}  Nf5 {[%clk 0:00:53]} 34. R4h3 {[%clk 0:00:34]}  Kg7 {[%clk 0:00:52]} 35. Be2 {[%clk 0:00:25]}  Qe6 {[%clk 0:00:43]} 36. Bxh5 {[%clk 0:00:24]}  gxh5 {[%clk 0:00:43]} 37. Qf3 {[%clk 0:00:15]}  h4 {[%clk 0:00:41]} 38. Kf2 {[%clk 0:00:10]}  b6 {[%clk 0:00:39]} 39. Rg1 {[%clk 0:00:07]}  Kg6 {[%clk 0:00:36]} 40. Qg4 {[%clk 0:00:07]}  Qe4 {[%clk 0:00:35]} 41. Qf3 {[%clk 0:00:06]}  Qc2 {[%clk 0:00:35]} 42. Qe2 {[%clk 0:00:06]}  bxa5 {[%clk 0:00:34]} 43. bxa5 {[%clk 0:00:05]}  Nxd4 {[%clk 0:00:34]} 44. Qe1 {[%clk 0:00:02]}  Nf5 {[%clk 0:00:33]} 45. Qd1 {[%clk 0:00:02]}  Qa2 {[%clk 0:00:32]} 46. Qb1 {[%clk 0:00:02]}  Qxd2+ {[%clk 0:00:31]} 0-1


[Site "https://www.chess.com"]

[Event "Titled Tuesday Blitz April 26 Early 2022"]
[White "Castellanos Hernandez, Emilio Au"]
[Black "Bachmann, Axel"]
[WhiteFideId "5114179"]
[BlackFideId "3700488"]
[WhiteElo "2021"]
[BlackElo "2587"]
[Result "1-0"]
[Round "05"]
[TimeControl "180+1"]
[Date "2022.04.26"]
[WhiteClock "0:00:49"]
[BlackClock "0:00:16"]

1. d4 {[%clk 0:02:54]}  Nf6 {[%clk 0:02:59]} 2. Bg5 {[%clk 0:02:51]}  c5 {[%clk 0:02:56]} 3. dxc5 {[%clk 0:02:32]}  Na6 {[%clk 0:02:51]} 4. Nc3 {[%clk 0:02:22]}  Nxc5 {[%clk 0:02:50]} 5. Bxf6 {[%clk 0:02:12]}  exf6 {[%clk 0:02:43]} 6. e4 {[%clk 0:02:13]}  g6 {[%clk 0:02:40]} 7. Nf3 {[%clk 0:02:07]}  Bh6 {[%clk 0:02:33]} 8. Bc4 {[%clk 0:02:03]}  O-O {[%clk 0:02:32]} 9. O-O {[%clk 0:02:03]}  Re8 {[%clk 0:02:32]} 10. Qd5 {[%clk 0:02:02]}  Qe7 {[%clk 0:02:22]} 11. Rad1 {[%clk 0:02:00]}  Ne6 {[%clk 0:02:12]} 12. Rfe1 {[%clk 0:01:56]}  a6 {[%clk 0:02:05]} 13. Qd6 {[%clk 0:01:51]}  b5 {[%clk 0:01:53]} 14. Qxe7 {[%clk 0:01:46]}  Rxe7 {[%clk 0:01:54]} 15. Bd5 {[%clk 0:01:45]}  Rb8 {[%clk 0:01:53]} 16. a3 {[%clk 0:01:43]}  Bb7 {[%clk 0:01:50]} 17. Bxb7 {[%clk 0:01:43]}  Rxb7 {[%clk 0:01:51]} 18. Rd6 {[%clk 0:01:43]}  Bf4 {[%clk 0:01:48]} 19. Rxa6 {[%clk 0:01:41]}  Nc7 {[%clk 0:01:43]} 20. Ra5 {[%clk 0:01:37]}  Bd6 {[%clk 0:01:26]} 21. Rd1 {[%clk 0:01:35]}  b4 {[%clk 0:01:20]} 22. Nd5 {[%clk 0:01:25]}  Nxd5 {[%clk 0:01:17]} 23. Raxd5 {[%clk 0:01:24]}  Bb8 {[%clk 0:00:58]} 24. axb4 {[%clk 0:01:23]}  Rxb4 {[%clk 0:00:58]} 25. b3 {[%clk 0:01:22]}  d6 {[%clk 0:00:45]} 26. R5d4 {[%clk 0:01:21]}  Rxe4 {[%clk 0:00:44]} 27. Rxe4 {[%clk 0:01:19]}  Rxe4 {[%clk 0:00:43]} 28. h3 {[%clk 0:01:20]}  Re2 {[%clk 0:00:39]} 29. Rd2 {[%clk 0:01:10]}  Re4 {[%clk 0:00:35]} 30. c4 {[%clk 0:01:07]}  Kf8 {[%clk 0:00:34]} 31. Kf1 {[%clk 0:01:06]}  Ke7 {[%clk 0:00:34]} 32. Re2 {[%clk 0:01:06]}  f5 {[%clk 0:00:33]} 33. Nd2 {[%clk 0:01:04]}  Re6 {[%clk 0:00:24]} 34. Nf3 {[%clk 0:01:04]}  h6 {[%clk 0:00:22]} 35. Nd4 {[%clk 0:01:04]}  Rxe2 {[%clk 0:00:20]} 36. Nc6+ {[%clk 0:01:04]}  Ke6 {[%clk 0:00:14]} 37. Kxe2 {[%clk 0:01:04]}  Bc7 {[%clk 0:00:15]} 38. Kd3 {[%clk 0:01:01]}  d5 {[%clk 0:00:15]} 39. Nd4+ {[%clk 0:01:01]}  Ke5 {[%clk 0:00:14]} 40. g3 {[%clk 0:00:59]}  dxc4+ {[%clk 0:00:14]} 41. bxc4 {[%clk 0:01:00]}  Bb6 {[%clk 0:00:14]} 42. f4+ {[%clk 0:01:00]}  Kd6 {[%clk 0:00:13]} 43. Nb3 {[%clk 0:01:01]}  Bf2 {[%clk 0:00:13]} 44. Ke2 {[%clk 0:00:57]}  Bxg3 {[%clk 0:00:13]} 45. Ke3 {[%clk 0:00:56]}  g5 {[%clk 0:00:12]} 46. fxg5 {[%clk 0:00:56]}  hxg5 {[%clk 0:00:13]} 47. Kd4 {[%clk 0:00:57]}  f4 {[%clk 0:00:13]} 48. c5+ {[%clk 0:00:58]}  Kc7 {[%clk 0:00:13]} 49. Ke4 {[%clk 0:00:56]}  Bf2 {[%clk 0:00:13]} 50. Kf5 {[%clk 0:00:54]}  Kc6 {[%clk 0:00:11]} 51. Kxg5 {[%clk 0:00:54]}  Be3 {[%clk 0:00:11]} 52. Kg4 {[%clk 0:00:53]}  Kd5 {[%clk 0:00:11]} 53. Kf3 {[%clk 0:00:50]}  f5 {[%clk 0:00:11]} 54. h4 {[%clk 0:00:51]}  Ke6 {[%clk 0:00:10]} 55. h5 {[%clk 0:00:49]}  Kf6 {[%clk 0:00:10]} 56. c6 {[%clk 0:00:49]}  Bb6 {[%clk 0:00:10]} 57. Kxf4 {[%clk 0:00:45]}  Bc7+ {[%clk 0:00:09]} 58. Kf3 {[%clk 0:00:44]}  Kg5 {[%clk 0:00:10]} 59. Nd4 {[%clk 0:00:44]}  Kxh5 {[%clk 0:00:08]} 60. Nxf5 {[%clk 0:00:44]}  Kg5 {[%clk 0:00:08]} 61. Ke4 {[%clk 0:00:44]}  Kf6 {[%clk 0:00:09]} 62. Nd4 {[%clk 0:00:44]}  Ke7 {[%clk 0:00:09]} 63. Kd5 {[%clk 0:00:44]}  Bg3 {[%clk 0:00:09]} 64. Nf5+ {[%clk 0:00:44]}  Kd8 {[%clk 0:00:09]} 65. Nxg3 {[%clk 0:00:45]}  Kc7 {[%clk 0:00:10]} 66. Kc5 {[%clk 0:00:45]}  Kc8 {[%clk 0:00:11]} 67. Kd6 {[%clk 0:00:46]}  Kb8 {[%clk 0:00:12]} 68. Nf5 {[%clk 0:00:46]}  Kc8 {[%clk 0:00:12]} 69. Ne7+ {[%clk 0:00:46]}  Kd8 {[%clk 0:00:13]} 70. c7+ {[%clk 0:00:47]}  Ke8 {[%clk 0:00:14]} 71. c8=Q+ {[%clk 0:00:47]}  Kf7 {[%clk 0:00:15]} 72. Qg8+ {[%clk 0:00:48]}  Kf6 {[%clk 0:00:16]} 73. Qg6# {[%clk 0:00:49]} 1-0


[Site "https://www.chess.com"]

[Event "Titled Tuesday Blitz April 26 Early 2022"]
[White "Chigaev, Maksim"]
[Black "Andreikin, Dmitry"]
[WhiteFideId "4108116"]
[BlackFideId "4158814"]
[WhiteElo "2478"]
[BlackElo "2736"]
[Result "0-1"]
[Round "05"]
[TimeControl "180+1"]
[Date "2022.04.26"]
[WhiteClock "0:00:04"]
[BlackClock "0:01:14"]

1. d4 {[%clk 0:03:00]}  d5 {[%clk 0:02:59]} 2. Nf3 {[%clk 0:02:58]}  Nf6 {[%clk 0:02:58]} 3. c4 {[%clk 0:02:58]}  e6 {[%clk 0:02:58]} 4. g3 {[%clk 0:02:58]}  Bb4+ {[%clk 0:02:54]} 5. Nbd2 {[%clk 0:02:57]}  dxc4 {[%clk 0:02:50]} 6. Bg2 {[%clk 0:02:57]}  b5 {[%clk 0:02:50]} 7. a3 {[%clk 0:02:57]}  Bxd2+ {[%clk 0:02:47]} 8. Nxd2 {[%clk 0:02:48]}  Nd5 {[%clk 0:02:42]} 9. a4 {[%clk 0:02:32]}  c6 {[%clk 0:02:34]} 10. O-O {[%clk 0:02:31]}  O-O {[%clk 0:02:33]} 11. e4 {[%clk 0:02:24]}  Nb4 {[%clk 0:02:33]} 12. axb5 {[%clk 0:02:21]}  cxb5 {[%clk 0:02:32]} 13. e5 {[%clk 0:02:20]}  N8c6 {[%clk 0:02:28]} 14. Ne4 {[%clk 0:02:07]}  Qxd4 {[%clk 0:02:27]} 15. Qxd4 {[%clk 0:01:36]}  Nxd4 {[%clk 0:02:28]} 16. Nf6+ {[%clk 0:01:37]}  gxf6 {[%clk 0:02:28]} 17. Bxa8 {[%clk 0:01:37]}  Ba6 {[%clk 0:02:06]} 18. Be4 {[%clk 0:01:09]}  Ne2+ {[%clk 0:02:04]} 19. Kg2 {[%clk 0:01:05]}  Nxc1 {[%clk 0:02:05]} 20. Rfxc1 {[%clk 0:00:54]}  fxe5 {[%clk 0:02:05]} 21. Ra5 {[%clk 0:00:35]}  f5 {[%clk 0:01:59]} 22. Bf3 {[%clk 0:00:23]}  e4 {[%clk 0:01:54]} 23. Be2 {[%clk 0:00:24]}  Rd8 {[%clk 0:01:52]} 24. Rd1 {[%clk 0:00:15]}  Rd5 {[%clk 0:01:35]} 25. f4 {[%clk 0:00:11]}  Kf7 {[%clk 0:01:33]} 26. Kf2 {[%clk 0:00:11]}  Ke7 {[%clk 0:01:34]} 27. Rda1 {[%clk 0:00:04]}  Rd6 {[%clk 0:01:28]} 28. h3 {[%clk 0:00:04]}  e3+ {[%clk 0:01:22]} 29. Kf3 {[%clk 0:00:03]}  Bb7+ {[%clk 0:01:20]} 30. Kxe3 {[%clk 0:00:03]}  Nc2+ {[%clk 0:01:21]} 31. Kf2 {[%clk 0:00:04]}  Nxa1 {[%clk 0:01:22]} 32. Rxa7 {[%clk 0:00:04]}  Rd7 {[%clk 0:01:16]} 33. Rxa1 {[%clk 0:00:04]}  Kd6 {[%clk 0:01:15]} 34. Ke3 {[%clk 0:00:04]}  Kc5 {[%clk 0:01:15]} 35. Rc1 {[%clk 0:00:04]}  Kb4 {[%clk 0:01:15]} 36. g4 {[%clk 0:00:04]}  Kb3 {[%clk 0:01:14]} 0-1


[Site "https://www.chess.com"]

[Event "Titled Tuesday Blitz April 26 Early 2022"]
[White "Danilenko, Dmitriy"]
[Black "Papasimakopoulos, Alexandros"]
[WhiteFideId "14120844"]
[BlackFideId "4244125"]
[WhiteElo "2606"]
[BlackElo "2340"]
[Result "0-1"]
[Round "05"]
[TimeControl "180+1"]
[Date "2022.04.26"]
[WhiteClock "0:00:01"]
[BlackClock "0:00:16"]

1. e4 {[%clk 0:02:58]}  e6 {[%clk 0:02:58]} 2. d4 {[%clk 0:02:58]}  d5 {[%clk 0:02:54]} 3. Nc3 {[%clk 0:02:59]}  Bb4 {[%clk 0:02:53]} 4. Qd3 {[%clk 0:02:59]}  dxe4 {[%clk 0:02:52]} 5. Qxe4 {[%clk 0:02:59]}  Nf6 {[%clk 0:02:52]} 6. Qh4 {[%clk 0:02:59]}  Nc6 {[%clk 0:02:53]} 7. Nf3 {[%clk 0:02:57]}  Ne7 {[%clk 0:02:54]} 8. Bd3 {[%clk 0:02:57]}  Nf5 {[%clk 0:02:53]} 9. Bxf5 {[%clk 0:02:57]}  exf5 {[%clk 0:02:54]} 10. O-O {[%clk 0:02:57]}  Bxc3 {[%clk 0:02:39]} 11. bxc3 {[%clk 0:02:57]}  Ne4 {[%clk 0:02:39]} 12. Qxd8+ {[%clk 0:01:35]}  Kxd8 {[%clk 0:02:40]} 13. Ne5 {[%clk 0:01:36]}  Nd6 {[%clk 0:02:09]} 14. Ba3 {[%clk 0:01:31]}  Be6 {[%clk 0:02:07]} 15. Rfe1 {[%clk 0:01:16]}  Re8 {[%clk 0:01:58]} 16. Nd3 {[%clk 0:00:33]}  Nc4 {[%clk 0:01:52]} 17. Bc1 {[%clk 0:00:32]}  b6 {[%clk 0:01:50]} 18. Bf4 {[%clk 0:00:30]}  f6 {[%clk 0:01:47]} 19. h4 {[%clk 0:00:30]}  Kd7 {[%clk 0:01:40]} 20. f3 {[%clk 0:00:28]}  h6 {[%clk 0:01:37]} 21. Kf2 {[%clk 0:00:20]}  g5 {[%clk 0:01:36]} 22. Bh2 {[%clk 0:00:20]}  f4 {[%clk 0:01:27]} 23. g3 {[%clk 0:00:20]}  fxg3+ {[%clk 0:01:24]} 24. Bxg3 {[%clk 0:00:21]}  a5 {[%clk 0:01:17]} 25. a4 {[%clk 0:00:17]}  Re7 {[%clk 0:01:09]} 26. Rh1 {[%clk 0:00:16]}  Rae8 {[%clk 0:01:08]} 27. Rae1 {[%clk 0:00:13]}  Bf5 {[%clk 0:01:05]} 28. Rxe7+ {[%clk 0:00:12]}  Rxe7 {[%clk 0:01:05]} 29. hxg5 {[%clk 0:00:13]}  hxg5 {[%clk 0:01:06]} 30. Rh6 {[%clk 0:00:14]}  Bxd3 {[%clk 0:00:50]} 31. cxd3 {[%clk 0:00:13]}  Nb2 {[%clk 0:00:51]} 32. Rxf6 {[%clk 0:00:13]}  Nxa4 {[%clk 0:00:45]} 33. c4 {[%clk 0:00:13]}  Nb2 {[%clk 0:00:46]} 34. Rf5 {[%clk 0:00:09]}  Nxd3+ {[%clk 0:00:43]} 35. Kf1 {[%clk 0:00:09]}  a4 {[%clk 0:00:43]} 36. Rb5 {[%clk 0:00:08]}  Re3 {[%clk 0:00:38]} 37. Kg2 {[%clk 0:00:06]}  Re2+ {[%clk 0:00:23]} 38. Kh3 {[%clk 0:00:06]}  Rb2 {[%clk 0:00:20]} 39. Rxg5 {[%clk 0:00:06]}  a3 {[%clk 0:00:20]} 40. Be5 {[%clk 0:00:05]}  a2 {[%clk 0:00:18]} 41. Rg7+ {[%clk 0:00:05]}  Ke6 {[%clk 0:00:18]} 42. Rg6+ {[%clk 0:00:03]}  Kf7 {[%clk 0:00:17]} 43. Rg7+ {[%clk 0:00:04]}  Kf8 {[%clk 0:00:17]} 44. Rg1 {[%clk 0:00:04]}  Nxe5 {[%clk 0:00:16]} 45. dxe5 {[%clk 0:00:01]}  Rb1 {[%clk 0:00:16]} 0-1


[Site "https://www.chess.com"]

[Event "Titled Tuesday Blitz April 26 Early 2022"]
[White "De Arruda, Leandro Formes"]
[Black "Melaugh, Shane"]
[WhiteFideId "22722009"]
[BlackFideId "2509580"]
[WhiteElo "1852"]
[BlackElo "1972"]
[Result "1-0"]
[Round "05"]
[TimeControl "180+1"]
[Date "2022.04.26"]
[WhiteClock "0:00:12"]
[BlackClock "0:00:51"]

1. d4 {[%clk 0:03:00]}  e6 {[%clk 0:02:59]} 2. Nf3 {[%clk 0:02:59]}  f5 {[%clk 0:03:00]} 3. Nbd2 {[%clk 0:02:57]}  Nf6 {[%clk 0:02:59]} 4. e3 {[%clk 0:02:56]}  Be7 {[%clk 0:02:58]} 5. Bd3 {[%clk 0:02:54]}  b6 {[%clk 0:02:56]} 6. O-O {[%clk 0:02:55]}  Bb7 {[%clk 0:02:57]} 7. Re1 {[%clk 0:02:55]}  Ne4 {[%clk 0:02:50]} 8. Ne5 {[%clk 0:02:54]}  d6 {[%clk 0:02:50]} 9. Qh5+ {[%clk 0:02:53]}  g6 {[%clk 0:02:44]} 10. Nxg6 {[%clk 0:02:52]}  Kd7 {[%clk 0:02:40]} 11. Nxh8 {[%clk 0:02:44]}  Qxh8 {[%clk 0:02:35]} 12. f3 {[%clk 0:02:42]}  Nf6 {[%clk 0:02:33]} 13. Qh3 {[%clk 0:02:41]}  Nc6 {[%clk 0:02:33]} 14. c3 {[%clk 0:02:40]}  Rg8 {[%clk 0:02:30]} 15. e4 {[%clk 0:02:40]}  fxe4 {[%clk 0:02:04]} 16. Nxe4 {[%clk 0:02:35]}  Nd8 {[%clk 0:01:57]} 17. Nxf6+ {[%clk 0:02:12]}  Qxf6 {[%clk 0:01:58]} 18. Be4 {[%clk 0:01:46]}  d5 {[%clk 0:01:56]} 19. Bd3 {[%clk 0:01:37]}  c5 {[%clk 0:01:56]} 20. Be3 {[%clk 0:01:30]}  Nc6 {[%clk 0:01:48]} 21. Bb5 {[%clk 0:01:25]}  a6 {[%clk 0:01:43]} 22. Bxc6+ {[%clk 0:01:22]}  Bxc6 {[%clk 0:01:44]} 23. Rad1 {[%clk 0:01:22]}  Rg7 {[%clk 0:01:30]} 24. b3 {[%clk 0:01:02]}  Kc7 {[%clk 0:01:25]} 25. Bf2 {[%clk 0:00:52]}  Kd7 {[%clk 0:01:22]} 26. Bg3 {[%clk 0:00:48]}  cxd4 {[%clk 0:01:15]} 27. cxd4 {[%clk 0:00:46]}  Bb4 {[%clk 0:01:15]} 28. Be5 {[%clk 0:00:41]}  Qg5 {[%clk 0:00:57]} 29. Bxg7 {[%clk 0:00:34]}  Bxe1 {[%clk 0:00:57]} 30. Rxe1 {[%clk 0:00:26]}  Qxg7 {[%clk 0:00:56]} 31. Qxe6+ {[%clk 0:00:21]}  Kc7 {[%clk 0:00:56]} 32. Qe7+ {[%clk 0:00:19]}  Qxe7 {[%clk 0:00:56]} 33. Rxe7+ {[%clk 0:00:20]}  Kd6 {[%clk 0:00:57]} 34. Rxh7 {[%clk 0:00:20]}  Bb5 {[%clk 0:00:58]} 35. Rh6+ {[%clk 0:00:18]}  Kc7 {[%clk 0:00:58]} 36. Kf2 {[%clk 0:00:18]}  Bd3 {[%clk 0:00:59]} 37. Ke3 {[%clk 0:00:18]}  Bb1 {[%clk 0:00:59]} 38. a3 {[%clk 0:00:18]}  a5 {[%clk 0:00:59]} 39. b4 {[%clk 0:00:18]}  a4 {[%clk 0:00:59]} 40. g4 {[%clk 0:00:17]}  b5 {[%clk 0:00:58]} 41. g5 {[%clk 0:00:16]}  Kd7 {[%clk 0:00:58]} 42. Rb6 {[%clk 0:00:15]}  Bc2 {[%clk 0:00:57]} 43. Rxb5 {[%clk 0:00:15]}  Ke6 {[%clk 0:00:57]} 44. f4 {[%clk 0:00:13]}  Bb3 {[%clk 0:00:57]} 45. Rb6+ {[%clk 0:00:12]}  Kf5 {[%clk 0:00:57]} 46. h3 {[%clk 0:00:12]}  Bd1 {[%clk 0:00:51]} 47. Rf6# {[%clk 0:00:12]} 1-0


[Site "https://www.chess.com"]

[Event "Titled Tuesday Blitz April 26 Early 2022"]
[White "De Souza, Cristiano Gomes"]
[Black "Buchenau, Frank"]
[WhiteFideId "2151758"]
[BlackFideId "4604350"]
[WhiteElo "2068"]
[BlackElo "2193"]
[Result "0-1"]
[Round "05"]
[TimeControl "180+1"]
[Date "2022.04.26"]
[WhiteClock "0:00:50"]
[BlackClock "0:00:09"]

1. d4 {[%clk 0:03:00]}  e6 {[%clk 0:02:59]} 2. c4 {[%clk 0:03:00]}  Nf6 {[%clk 0:03:00]} 3. Nf3 {[%clk 0:02:59]}  b6 {[%clk 0:02:59]} 4. g3 {[%clk 0:02:58]}  Bb7 {[%clk 0:03:00]} 5. Bg2 {[%clk 0:02:58]}  Be7 {[%clk 0:03:01]} 6. O-O {[%clk 0:02:58]}  O-O {[%clk 0:03:01]} 7. Nc3 {[%clk 0:02:57]}  Ne4 {[%clk 0:03:01]} 8. Qc2 {[%clk 0:02:57]}  Nxc3 {[%clk 0:03:00]} 9. Qxc3 {[%clk 0:02:57]}  f5 {[%clk 0:03:01]} 10. b3 {[%clk 0:02:58]}  Bf6 {[%clk 0:03:01]} 11. Bb2 {[%clk 0:02:58]}  d6 {[%clk 0:03:01]} 12. Rad1 {[%clk 0:02:58]}  a5 {[%clk 0:03:01]} 13. Rfe1 {[%clk 0:02:57]}  Nd7 {[%clk 0:02:55]} 14. Qc2 {[%clk 0:02:57]}  Be4 {[%clk 0:02:54]} 15. Qc1 {[%clk 0:02:56]}  Qe7 {[%clk 0:02:53]} 16. Nd2 {[%clk 0:02:54]}  Bxg2 {[%clk 0:02:52]} 17. Kxg2 {[%clk 0:02:54]}  e5 {[%clk 0:02:43]} 18. dxe5 {[%clk 0:02:52]}  dxe5 {[%clk 0:02:42]} 19. Nf3 {[%clk 0:02:52]}  e4 {[%clk 0:02:27]} 20. Nd4 {[%clk 0:02:49]}  f4 {[%clk 0:02:17]} 21. f3 {[%clk 0:02:41]}  Rae8 {[%clk 0:02:06]} 22. Nc6 {[%clk 0:02:11]}  Qe6 {[%clk 0:02:01]} 23. Bxf6 {[%clk 0:02:10]}  Qxc6 {[%clk 0:01:53]} 24. Ba1 {[%clk 0:02:04]}  fxg3 {[%clk 0:01:52]} 25. Qg5 {[%clk 0:01:56]}  exf3+ {[%clk 0:01:49]} 26. Kxg3 {[%clk 0:01:55]}  Nf6 {[%clk 0:01:33]} 27. exf3 {[%clk 0:01:51]}  Rxe1 {[%clk 0:01:18]} 28. Rxe1 {[%clk 0:01:49]}  Qd6+ {[%clk 0:01:05]} 29. Be5 {[%clk 0:01:45]}  Qd7 {[%clk 0:00:40]} 30. Bxf6 {[%clk 0:01:42]}  Rxf6 {[%clk 0:00:40]} 31. Qd5+ {[%clk 0:01:28]}  Qxd5 {[%clk 0:00:39]} 32. cxd5 {[%clk 0:01:28]}  Rd6 {[%clk 0:00:33]} 33. Re7 {[%clk 0:01:27]}  Rxd5 {[%clk 0:00:33]} 34. Rxc7 {[%clk 0:01:26]}  Rd2 {[%clk 0:00:33]} 35. Rc6 {[%clk 0:01:24]}  b5 {[%clk 0:00:31]} 36. Rc5 {[%clk 0:01:23]}  Rxa2 {[%clk 0:00:24]} 37. Rxb5 {[%clk 0:01:23]}  Kf7 {[%clk 0:00:24]} 38. Kf4 {[%clk 0:01:18]}  Rxh2 {[%clk 0:00:19]} 39. Rxa5 {[%clk 0:01:17]}  Rb2 {[%clk 0:00:18]} 40. Ra7+ {[%clk 0:01:15]}  Kf6 {[%clk 0:00:17]} 41. Rb7 {[%clk 0:01:15]}  g5+ {[%clk 0:00:15]} 42. Kg3 {[%clk 0:01:13]}  h5 {[%clk 0:00:14]} 43. Rb5 {[%clk 0:01:10]}  Kg6 {[%clk 0:00:13]} 44. b4 {[%clk 0:01:08]}  h4+ {[%clk 0:00:13]} 45. Kh3 {[%clk 0:01:08]}  Rf2 {[%clk 0:00:12]} 46. Rb6+ {[%clk 0:01:00]}  Kh5 {[%clk 0:00:12]} 47. Rb8 {[%clk 0:00:55]}  Rxf3+ {[%clk 0:00:12]} 48. Kg2 {[%clk 0:00:56]}  Rb3 {[%clk 0:00:12]} 49. b5 {[%clk 0:00:56]}  Kg4 {[%clk 0:00:12]} 50. b6 {[%clk 0:00:54]}  Rb2+ {[%clk 0:00:13]} 51. Kf1 {[%clk 0:00:54]}  h3 {[%clk 0:00:13]} 52. b7 {[%clk 0:00:53]}  h2 {[%clk 0:00:10]} 53. Rh8 {[%clk 0:00:50]}  Kg3 {[%clk 0:00:09]} 0-1


[Site "https://www.chess.com"]